[Event "Titled Tuesday Blitz May 03 Early 2022"]
[White "Ismayil, Malak"]
[Black "Stevens, Christian"]
[WhiteFideId "13412604"]
[BlackFideId "2604450"]
[WhiteElo "1879"]
[BlackElo "2502"]
[Result "1-0"]
[Round "11"]
[TimeControl "180+1"]
[Date "2022.05.03"]
[WhiteClock "0:00:24"]
[BlackClock "0:00:01"]

1. e4 {[%clk 0:03:00]}  c5 {[%clk 0:02:59]} 2. Nf3 {[%clk 0:02:59]}  e6 {[%clk 0:02:59]} 3. Nc3 {[%clk 0:02:58]}  a6 {[%clk 0:02:58]} 4. Be2 {[%clk 0:02:58]}  Nc6 {[%clk 0:02:57]} 5. O-O {[%clk 0:02:58]}  Nf6 {[%clk 0:02:57]} 6. d3 {[%clk 0:02:58]}  d5 {[%clk 0:02:55]} 7. Bg5 {[%clk 0:02:59]}  Be7 {[%clk 0:02:53]} 8. exd5 {[%clk 0:02:58]}  exd5 {[%clk 0:02:51]} 9. d4 {[%clk 0:02:58]}  cxd4 {[%clk 0:02:45]} 10. Nxd4 {[%clk 0:02:59]}  O-O {[%clk 0:02:44]} 11. h3 {[%clk 0:02:55]}  Be6 {[%clk 0:02:41]} 12. Re1 {[%clk 0:02:55]}  Qb6 {[%clk 0:02:30]} 13. Nb3 {[%clk 0:02:52]}  d4 {[%clk 0:02:26]} 14. Na4 {[%clk 0:02:49]}  Qa7 {[%clk 0:02:24]} 15. Bxf6 {[%clk 0:02:42]}  Bxf6 {[%clk 0:02:24]} 16. Nac5 {[%clk 0:02:41]}  Bxb3 {[%clk 0:02:08]} 17. Nxb3 {[%clk 0:02:39]}  d3 {[%clk 0:02:07]} 18. Bxd3 {[%clk 0:02:36]}  Bxb2 {[%clk 0:02:07]} 19. Rb1 {[%clk 0:02:36]}  Bf6 {[%clk 0:02:05]} 20. Qh5 {[%clk 0:02:24]}  g6 {[%clk 0:02:04]} 21. Qc5 {[%clk 0:02:23]}  Rac8 {[%clk 0:01:38]} 22. Qd6 {[%clk 0:02:00]}  Bc3 {[%clk 0:01:14]} 23. Re3 {[%clk 0:01:56]}  Rfd8 {[%clk 0:01:07]} 24. Qf4 {[%clk 0:01:52]}  Nd4 {[%clk 0:01:01]} 25. Re7 {[%clk 0:01:38]}  Rf8 {[%clk 0:00:59]} 26. Nxd4 {[%clk 0:01:33]}  Qxd4 {[%clk 0:00:55]} 27. Qxd4 {[%clk 0:01:30]}  Bxd4 {[%clk 0:00:56]} 28. Rbxb7 {[%clk 0:01:30]}  Rc5 {[%clk 0:00:48]} 29. Kf1 {[%clk 0:01:26]}  a5 {[%clk 0:00:37]} 30. Ke2 {[%clk 0:01:19]}  Bf6 {[%clk 0:00:34]} 31. Red7 {[%clk 0:01:16]}  Re5+ {[%clk 0:00:31]} 32. Kf3 {[%clk 0:01:15]}  Rc5 {[%clk 0:00:27]} 33. Be4 {[%clk 0:01:04]}  Rc3+ {[%clk 0:00:16]} 34. Ke2 {[%clk 0:01:00]}  Re8 {[%clk 0:00:15]} 35. f3 {[%clk 0:00:59]}  Rxc2+ {[%clk 0:00:13]} 36. Kf1 {[%clk 0:00:39]}  Rc1+ {[%clk 0:00:11]} 37. Kf2 {[%clk 0:00:35]}  Bc3 {[%clk 0:00:06]} 38. Rxf7 {[%clk 0:00:31]}  Bd4+ {[%clk 0:00:06]} 39. Kg3 {[%clk 0:00:28]}  Be5+ {[%clk 0:00:05]} 40. Kg4 {[%clk 0:00:26]}  Bd4 {[%clk 0:00:01]} 41. Rxh7 {[%clk 0:00:25]}  Rg1 {[%clk 0:00:01]} 42. Bd5+ {[%clk 0:00:24]} 1-0


[Site "https://www.chess.com"]

[Event "Titled Tuesday Blitz May 03 Early 2022"]
[White "Itkis, Boris"]
[Black "Sailer, Mike"]
[WhiteFideId "1209167"]
[BlackFideId "2012901"]
[WhiteElo "2207"]
[BlackElo "2109"]
[Result "1-0"]
[Round "11"]
[TimeControl "180+1"]
[Date "2022.05.03"]
[WhiteClock "0:00:07"]
[BlackClock "0:00:04"]

1. Nf3 {[%clk 0:03:00]}  d5 {[%clk 0:02:59]} 2. e3 {[%clk 0:03:01]}  Nf6 {[%clk 0:02:58]} 3. b3 {[%clk 0:03:01]}  Bg4 {[%clk 0:02:57]} 4. Bb2 {[%clk 0:03:01]}  e6 {[%clk 0:02:58]} 5. h3 {[%clk 0:03:01]}  Bh5 {[%clk 0:02:58]} 6. d4 {[%clk 0:03:00]}  Be7 {[%clk 0:02:58]} 7. Nbd2 {[%clk 0:03:00]}  O-O {[%clk 0:02:55]} 8. Bd3 {[%clk 0:03:01]}  c5 {[%clk 0:02:51]} 9. O-O {[%clk 0:03:00]}  Nbd7 {[%clk 0:02:43]} 10. Qb1 {[%clk 0:02:53]}  a6 {[%clk 0:02:35]} 11. c4 {[%clk 0:02:47]}  cxd4 {[%clk 0:02:30]} 12. Nxd4 {[%clk 0:02:46]}  dxc4 {[%clk 0:02:30]} 13. Nxc4 {[%clk 0:02:43]}  Bg6 {[%clk 0:02:26]} 14. Rd1 {[%clk 0:02:38]}  Bxd3 {[%clk 0:01:56]} 15. Qxd3 {[%clk 0:02:34]}  Nc5 {[%clk 0:01:57]} 16. Qe2 {[%clk 0:02:33]}  Qb8 {[%clk 0:01:46]} 17. Nf3 {[%clk 0:02:18]}  Rd8 {[%clk 0:01:42]} 18. Be5 {[%clk 0:02:05]}  Qa7 {[%clk 0:01:38]} 19. Rxd8+ {[%clk 0:01:53]}  Rxd8 {[%clk 0:01:36]} 20. Rd1 {[%clk 0:01:54]}  Rxd1+ {[%clk 0:01:31]} 21. Qxd1 {[%clk 0:01:55]}  Qa8 {[%clk 0:01:29]} 22. Qd4 {[%clk 0:01:47]}  Qd8 {[%clk 0:01:19]} 23. Qxd8+ {[%clk 0:01:24]}  Bxd8 {[%clk 0:01:19]} 24. Nd6 {[%clk 0:01:24]}  b5 {[%clk 0:01:03]} 25. Nd4 {[%clk 0:01:23]}  Nfe4 {[%clk 0:00:58]} 26. Nxe4 {[%clk 0:01:08]}  Nxe4 {[%clk 0:00:58]} 27. Nc6 {[%clk 0:01:09]}  Bb6 {[%clk 0:00:51]} 28. Kf1 {[%clk 0:01:04]}  f6 {[%clk 0:00:44]} 29. Bb2 {[%clk 0:00:56]}  Kf7 {[%clk 0:00:36]} 30. Ke2 {[%clk 0:00:55]}  Ke8 {[%clk 0:00:35]} 31. f3 {[%clk 0:00:50]}  Ng3+ {[%clk 0:00:35]} 32. Kd3 {[%clk 0:00:44]}  Nf5 {[%clk 0:00:35]} 33. e4 {[%clk 0:00:41]}  Ne7 {[%clk 0:00:27]} 34. Nb8 {[%clk 0:00:20]}  a5 {[%clk 0:00:26]} 35. Bd4 {[%clk 0:00:20]}  Bc7 {[%clk 0:00:21]} 36. Na6 {[%clk 0:00:19]}  Kd7 {[%clk 0:00:19]} 37. Bc5 {[%clk 0:00:19]}  Bd6 {[%clk 0:00:10]} 38. Bxd6 {[%clk 0:00:17]}  Kxd6 {[%clk 0:00:11]} 39. a3 {[%clk 0:00:16]}  Nc6 {[%clk 0:00:07]} 40. Kc3 {[%clk 0:00:15]}  Ne5 {[%clk 0:00:04]} 41. a4 {[%clk 0:00:12]}  Kc6 {[%clk 0:00:03]} 42. axb5+ {[%clk 0:00:12]}  Kxb5 {[%clk 0:00:03]} 43. Nc7+ {[%clk 0:00:12]}  Kc6 {[%clk 0:00:03]} 44. Nxe6 {[%clk 0:00:13]}  Nd7 {[%clk 0:00:03]} 45. Nxg7 {[%clk 0:00:12]}  Nc5 {[%clk 0:00:04]} 46. Nh5 {[%clk 0:00:12]}  Nd7 {[%clk 0:00:03]} 47. g4 {[%clk 0:00:11]}  Kb5 {[%clk 0:00:03]} 48. f4 {[%clk 0:00:10]}  h6 {[%clk 0:00:03]} 49. h4 {[%clk 0:00:08]}  Kc5 {[%clk 0:00:03]} 50. Ng7 {[%clk 0:00:07]}  Kb5 {[%clk 0:00:03]} 51. Nf5 {[%clk 0:00:05]}  Nc5 {[%clk 0:00:03]} 52. Nxh6 {[%clk 0:00:05]}  Nxe4+ {[%clk 0:00:03]} 53. Kd4 {[%clk 0:00:05]}  Nf2 {[%clk 0:00:03]} 54. g5 {[%clk 0:00:05]}  fxg5 {[%clk 0:00:03]} 55. hxg5 {[%clk 0:00:06]}  Kb4 {[%clk 0:00:04]} 56. g6 {[%clk 0:00:06]}  Ng4 {[%clk 0:00:04]} 57. Nxg4 {[%clk 0:00:06]}  Kxb3 {[%clk 0:00:04]} 58. g7 {[%clk 0:00:07]} 1-0


[Site "https://www.chess.com"]

[Event "Titled Tuesday Blitz May 03 Early 2022"]
[White "Jakubiec, Artur"]
[Black "Varshini, V"]
[WhiteFideId "1103261"]
[BlackFideId "5091241"]
[WhiteElo "2473"]
[BlackElo "1948"]
[Result "1-0"]
[Round "11"]
[TimeControl "180+1"]
[Date "2022.05.03"]
[WhiteClock "0:00:32"]
[BlackClock "0:00:04"]

1. f4 {[%clk 0:03:00]}  d5 {[%clk 0:02:59]} 2. Nf3 {[%clk 0:03:00]}  e6 {[%clk 0:02:59]} 3. g3 {[%clk 0:03:00]}  Nf6 {[%clk 0:02:59]} 4. Bg2 {[%clk 0:03:01]}  Be7 {[%clk 0:02:59]} 5. O-O {[%clk 0:03:01]}  c5 {[%clk 0:02:59]} 6. d3 {[%clk 0:03:02]}  Nc6 {[%clk 0:02:58]} 7. Nc3 {[%clk 0:03:00]}  b6 {[%clk 0:02:58]} 8. e4 {[%clk 0:03:00]}  dxe4 {[%clk 0:02:57]} 9. dxe4 {[%clk 0:03:01]}  Bb7 {[%clk 0:02:58]} 10. e5 {[%clk 0:03:00]}  Qxd1 {[%clk 0:02:11]} 11. Rxd1 {[%clk 0:03:01]}  Nd7 {[%clk 0:02:11]} 12. Ne4 {[%clk 0:02:55]}  O-O-O {[%clk 0:02:01]} 13. Be3 {[%clk 0:02:49]}  Nb4 {[%clk 0:01:57]} 14. Ne1 {[%clk 0:02:49]}  Nd5 {[%clk 0:01:53]} 15. Bf2 {[%clk 0:02:48]}  Nb8 {[%clk 0:01:50]} 16. c3 {[%clk 0:02:28]}  Kc7 {[%clk 0:01:31]} 17. Nc2 {[%clk 0:02:21]}  Kc8 {[%clk 0:01:22]} 18. Na3 {[%clk 0:02:18]}  Ba6 {[%clk 0:01:11]} 19. Bf1 {[%clk 0:02:08]}  Bxf1 {[%clk 0:01:08]} 20. Kxf1 {[%clk 0:02:06]}  Nc7 {[%clk 0:00:47]} 21. Nc4 {[%clk 0:02:02]}  Rxd1+ {[%clk 0:00:31]} 22. Rxd1 {[%clk 0:02:02]}  Ne8 {[%clk 0:00:32]} 23. a4 {[%clk 0:01:59]}  Nc6 {[%clk 0:00:27]} 24. Ke2 {[%clk 0:01:56]}  Kc7 {[%clk 0:00:25]} 25. Be3 {[%clk 0:01:54]}  f6 {[%clk 0:00:25]} 26. exf6 {[%clk 0:01:53]}  Nxf6 {[%clk 0:00:25]} 27. Ng5 {[%clk 0:01:50]}  Nd8 {[%clk 0:00:21]} 28. Ne5 {[%clk 0:01:49]}  h6 {[%clk 0:00:13]} 29. Ng6 {[%clk 0:01:41]}  Re8 {[%clk 0:00:11]} 30. Nf3 {[%clk 0:01:41]}  Bd6 {[%clk 0:00:10]} 31. a5 {[%clk 0:01:38]}  Nb7 {[%clk 0:00:08]} 32. axb6+ {[%clk 0:01:37]}  axb6 {[%clk 0:00:09]} 33. Ra1 {[%clk 0:01:37]}  Kb8 {[%clk 0:00:08]} 34. Nfe5 {[%clk 0:01:36]}  Nd5 {[%clk 0:00:07]} 35. Kf3 {[%clk 0:01:23]}  Na5 {[%clk 0:00:07]} 36. Rd1 {[%clk 0:01:11]}  Kc7 {[%clk 0:00:06]} 37. Nf7 {[%clk 0:01:06]}  Be7 {[%clk 0:00:04]} 38. Bf2 {[%clk 0:00:58]}  Bf6 {[%clk 0:00:04]} 39. g4 {[%clk 0:00:56]}  Nc4 {[%clk 0:00:04]} 40. Bg3 {[%clk 0:00:55]}  Nxb2 {[%clk 0:00:03]} 41. Rb1 {[%clk 0:00:52]}  Nc4 {[%clk 0:00:01]} 42. h4 {[%clk 0:00:49]}  Kc6 {[%clk 0:00:02]} 43. g5 {[%clk 0:00:49]}  Nd2+ {[%clk 0:00:02]} 44. Kg4 {[%clk 0:00:46]}  Nxb1 {[%clk 0:00:02]} 45. gxf6 {[%clk 0:00:46]}  gxf6 {[%clk 0:00:03]} 46. Kh5 {[%clk 0:00:45]}  Ne7 {[%clk 0:00:04]} 47. Kxh6 {[%clk 0:00:42]}  Nxg6 {[%clk 0:00:04]} 48. Kxg6 {[%clk 0:00:43]}  Rg8+ {[%clk 0:00:04]} 49. Kxf6 {[%clk 0:00:39]}  Rxg3 {[%clk 0:00:05]} 50. Ng5 {[%clk 0:00:38]}  Rh3 {[%clk 0:00:06]} 51. Nxh3 {[%clk 0:00:38]}  Nxc3 {[%clk 0:00:06]} 52. h5 {[%clk 0:00:38]}  Nd5+ {[%clk 0:00:07]} 53. Kxe6 {[%clk 0:00:36]}  Nc7+ {[%clk 0:00:05]} 54. Kf7 {[%clk 0:00:32]}  c4 {[%clk 0:00:05]} 55. Nf2 {[%clk 0:00:31]}  c3 {[%clk 0:00:05]} 56. h6 {[%clk 0:00:31]}  c2 {[%clk 0:00:06]} 57. Nd3 {[%clk 0:00:32]}  Kd5 {[%clk 0:00:05]} 58. h7 {[%clk 0:00:32]}  Kc4 {[%clk 0:00:04]} 59. Nc1 {[%clk 0:00:32]} 1-0


[Site "https://www.chess.com"]

[Event "Titled Tuesday Blitz May 03 Early 2022"]
[White "Janaszak, Dawid"]
[Black "Lashkin, Jegor"]
[WhiteFideId "1119206"]
[BlackFideId "13907808"]
[WhiteElo "2199"]
[BlackElo "2368"]
[Result "0-1"]
[Round "11"]
[TimeControl "180+1"]
[Date "2022.05.03"]
[WhiteClock "0:00:06"]
[BlackClock "0:00:09"]

1. e4 {[%clk 0:03:00]}  c5 {[%clk 0:03:00]} 2. Nc3 {[%clk 0:02:58]}  d6 {[%clk 0:03:00]} 3. d4 {[%clk 0:02:57]}  cxd4 {[%clk 0:03:01]} 4. Qxd4 {[%clk 0:02:57]}  Nc6 {[%clk 0:03:01]} 5. Qd2 {[%clk 0:02:58]}  g6 {[%clk 0:03:01]} 6. b3 {[%clk 0:02:58]}  Bh6 {[%clk 0:03:02]} 7. f4 {[%clk 0:02:58]}  Nf6 {[%clk 0:03:02]} 8. Bb2 {[%clk 0:02:52]}  O-O {[%clk 0:03:02]} 9. O-O-O {[%clk 0:02:49]}  e5 {[%clk 0:03:02]} 10. Nge2 {[%clk 0:02:43]}  Re8 {[%clk 0:02:52]} 11. Qxd6 {[%clk 0:02:35]}  Qxd6 {[%clk 0:02:49]} 12. Rxd6 {[%clk 0:02:36]}  Ng4 {[%clk 0:02:47]} 13. g3 {[%clk 0:02:28]}  exf4 {[%clk 0:01:56]} 14. Nxf4 {[%clk 0:02:19]}  Nf2 {[%clk 0:01:54]} 15. Rg1 {[%clk 0:02:17]}  Nxe4 {[%clk 0:01:53]} 16. Nxe4 {[%clk 0:02:13]}  Rxe4 {[%clk 0:01:54]} 17. Kb1 {[%clk 0:02:04]}  Re1+ {[%clk 0:01:52]} 18. Bc1 {[%clk 0:02:01]}  Bf8 {[%clk 0:01:47]} 19. Rd2 {[%clk 0:01:50]}  Bc5 {[%clk 0:01:08]} 20. Rh1 {[%clk 0:01:17]}  Be3 {[%clk 0:01:08]} 21. Kb2 {[%clk 0:00:59]}  Bxd2 {[%clk 0:00:52]} 22. Bxd2 {[%clk 0:00:58]}  Rd1 {[%clk 0:00:49]} 23. Bc3 {[%clk 0:00:51]}  Be6 {[%clk 0:00:38]} 24. Bg2 {[%clk 0:00:45]}  Rxh1 {[%clk 0:00:37]} 25. Bxh1 {[%clk 0:00:45]}  Rd8 {[%clk 0:00:34]} 26. h4 {[%clk 0:00:45]}  Kf8 {[%clk 0:00:26]} 27. Bf3 {[%clk 0:00:42]}  Ke7 {[%clk 0:00:24]} 28. Kc1 {[%clk 0:00:41]}  h6 {[%clk 0:00:20]} 29. Nd3 {[%clk 0:00:40]}  Bd5 {[%clk 0:00:17]} 30. Be2 {[%clk 0:00:40]}  b6 {[%clk 0:00:16]} 31. Nf4 {[%clk 0:00:36]}  Be4 {[%clk 0:00:17]} 32. Bb5 {[%clk 0:00:34]}  g5 {[%clk 0:00:14]} 33. Nh5 {[%clk 0:00:34]}  Rd6 {[%clk 0:00:12]} 34. Bb2 {[%clk 0:00:28]}  Nd4 {[%clk 0:00:12]} 35. Bc4 {[%clk 0:00:27]}  b5 {[%clk 0:00:11]} 36. Bd3 {[%clk 0:00:22]}  Bxd3 {[%clk 0:00:10]} 37. cxd3 {[%clk 0:00:23]}  Rc6+ {[%clk 0:00:10]} 38. Kd1 {[%clk 0:00:23]}  Nf5 {[%clk 0:00:10]} 39. hxg5 {[%clk 0:00:19]}  hxg5 {[%clk 0:00:11]} 40. g4 {[%clk 0:00:19]}  Ne3+ {[%clk 0:00:11]} 41. Kd2 {[%clk 0:00:19]}  Nxg4 {[%clk 0:00:12]} 42. Ba3+ {[%clk 0:00:18]}  Kd8 {[%clk 0:00:11]} 43. Ng3 {[%clk 0:00:17]}  Re6 {[%clk 0:00:11]} 44. Ne4 {[%clk 0:00:17]}  f6 {[%clk 0:00:10]} 45. Nc5 {[%clk 0:00:17]}  Rc6 {[%clk 0:00:10]} 46. Ne4 {[%clk 0:00:14]}  Ne5 {[%clk 0:00:10]} 47. Bb2 {[%clk 0:00:12]}  Nd7 {[%clk 0:00:09]} 48. Bd4 {[%clk 0:00:11]}  a6 {[%clk 0:00:09]} 49. a4 {[%clk 0:00:11]}  bxa4 {[%clk 0:00:09]} 50. bxa4 {[%clk 0:00:12]}  Kc7 {[%clk 0:00:10]} 51. Bc3 {[%clk 0:00:11]}  g4 {[%clk 0:00:10]} 52. Ng3 {[%clk 0:00:11]}  Ne5 {[%clk 0:00:09]} 53. Ba5+ {[%clk 0:00:11]}  Kb7 {[%clk 0:00:09]} 54. Ke3 {[%clk 0:00:11]}  Rd6 {[%clk 0:00:09]} 55. Ne4 {[%clk 0:00:06]}  Rxd3+ {[%clk 0:00:09]} 56. Kf4 {[%clk 0:00:06]}  Rd5 {[%clk 0:00:09]} 57. Nxf6 {[%clk 0:00:06]}  Rxa5 {[%clk 0:00:09]} 0-1


[Site "https://www.chess.com"]

[Event "Titled Tuesday Blitz May 03 Early 2022"]
[White "Khabinets, Ivan"]
[Black "Petrovic, Aleksa"]
[WhiteFideId "14115980"]
[BlackFideId "967629"]
[WhiteElo "2114"]
[BlackElo "2198"]
[Result "0-1"]
[Round "11"]
[TimeControl "180+1"]
[Date "2022.05.03"]
[WhiteClock "0:00:36"]
[BlackClock "0:00:17"]

1. c4 {[%clk 0:03:00]}  Nf6 {[%clk 0:02:58]} 2. Nc3 {[%clk 0:03:00]}  c5 {[%clk 0:02:54]} 3. e4 {[%clk 0:03:00]}  Nc6 {[%clk 0:02:53]} 4. Nf3 {[%clk 0:02:58]}  e6 {[%clk 0:02:41]} 5. d4 {[%clk 0:02:57]}  cxd4 {[%clk 0:02:40]} 6. Nxd4 {[%clk 0:02:58]}  Bb4 {[%clk 0:02:40]} 7. Qd3 {[%clk 0:02:53]}  Ne5 {[%clk 0:02:31]} 8. Qc2 {[%clk 0:02:46]}  O-O {[%clk 0:02:21]} 9. Be2 {[%clk 0:02:42]}  d5 {[%clk 0:02:13]} 10. Bg5 {[%clk 0:02:40]}  Qb6 {[%clk 0:02:04]} 11. O-O-O {[%clk 0:02:29]}  Bxc3 {[%clk 0:01:58]} 12. Qxc3 {[%clk 0:02:29]}  Nxe4 {[%clk 0:01:56]} 13. Qe3 {[%clk 0:02:28]}  Nxg5 {[%clk 0:01:53]} 14. Qxe5 {[%clk 0:02:25]}  f6 {[%clk 0:01:49]} 15. Qe3 {[%clk 0:02:24]}  e5 {[%clk 0:01:45]} 16. Nb5 {[%clk 0:02:22]}  Qxe3+ {[%clk 0:01:41]} 17. fxe3 {[%clk 0:02:21]}  Bf5 {[%clk 0:01:11]} 18. h4 {[%clk 0:01:42]}  Ne4 {[%clk 0:01:05]} 19. Rxd5 {[%clk 0:01:42]}  Be6 {[%clk 0:00:50]} 20. Rdd1 {[%clk 0:01:20]}  Ng3 {[%clk 0:00:35]} 21. Bd3 {[%clk 0:01:02]}  Nxh1 {[%clk 0:00:32]} 22. Nc7 {[%clk 0:01:02]}  Nf2 {[%clk 0:00:28]} 23. Nxe6 {[%clk 0:00:52]}  Rfc8 {[%clk 0:00:20]} 24. b3 {[%clk 0:00:37]}  Nxd1 {[%clk 0:00:19]} 25. Kxd1 {[%clk 0:00:36]}  Kf7 {[%clk 0:00:17]} 0-1


[Site "https://www.chess.com"]

[Event "Titled Tuesday Blitz May 03 Early 2022"]
[White "Kollars, Dmitrij"]
[Black "Rasulov, Vugar"]
[WhiteFideId "12909572"]
[BlackFideId "13402390"]
[WhiteElo "2584"]
[BlackElo "2560"]
[Result "0-1"]
[Round "11"]
[TimeControl "180+1"]
[Date "2022.05.03"]
[WhiteClock "0:00:36"]
[BlackClock "0:01:19"]

1. d4 {[%clk 0:03:00]}  d5 {[%clk 0:02:58]} 2. c4 {[%clk 0:03:00]}  c6 {[%clk 0:02:59]} 3. cxd5 {[%clk 0:03:00]}  cxd5 {[%clk 0:03:00]} 4. Bg5 {[%clk 0:03:00]}  h6 {[%clk 0:02:56]} 5. Bh4 {[%clk 0:03:00]}  Qb6 {[%clk 0:02:57]} 6. Nc3 {[%clk 0:02:58]}  e6 {[%clk 0:02:57]} 7. e3 {[%clk 0:02:46]}  Qxb2 {[%clk 0:02:52]} 8. Bb5+ {[%clk 0:02:45]}  Bd7 {[%clk 0:02:43]} 9. Bxd7+ {[%clk 0:02:43]}  Nxd7 {[%clk 0:02:44]} 10. Nge2 {[%clk 0:02:43]}  Bb4 {[%clk 0:02:33]} 11. Rc1 {[%clk 0:02:20]}  Rc8 {[%clk 0:02:10]} 12. O-O {[%clk 0:02:11]}  Bxc3 {[%clk 0:02:10]} 13. Rc2 {[%clk 0:01:47]}  Qa3 {[%clk 0:02:04]} 14. Qd3 {[%clk 0:01:46]}  Ngf6 {[%clk 0:02:02]} 15. Nxc3 {[%clk 0:01:40]}  O-O {[%clk 0:02:02]} 16. f3 {[%clk 0:01:37]}  Rc4 {[%clk 0:01:55]} 17. Rfc1 {[%clk 0:01:35]}  Rfc8 {[%clk 0:01:54]} 18. h3 {[%clk 0:01:29]}  b5 {[%clk 0:01:50]} 19. Qd2 {[%clk 0:01:30]}  b4 {[%clk 0:01:48]} 20. Nd1 {[%clk 0:01:16]}  Qxc1 {[%clk 0:01:43]} 21. Rxc1 {[%clk 0:01:16]}  Rxc1 {[%clk 0:01:43]} 22. Kh2 {[%clk 0:01:13]}  R8c2 {[%clk 0:01:35]} 23. Qd3 {[%clk 0:01:13]}  Rxa2 {[%clk 0:01:31]} 24. Nf2 {[%clk 0:00:57]}  Rcc2 {[%clk 0:01:29]} 25. Kg1 {[%clk 0:00:55]}  g5 {[%clk 0:01:22]} 26. Bg3 {[%clk 0:00:55]}  Nh5 {[%clk 0:01:22]} 27. Qb5 {[%clk 0:00:36]}  Nxg3 {[%clk 0:01:19]} 0-1


[Site "https://www.chess.com"]

[Event "Titled Tuesday Blitz May 03 Early 2022"]
[White "Laohawirapap, Prin"]
[Black "Jian, Alex"]
[WhiteFideId "6205003"]
[BlackFideId "30901022"]
[WhiteElo "1832"]
[BlackElo "2111"]
[Result "1-0"]
[Round "11"]
[TimeControl "180+1"]
[Date "2022.05.03"]
[WhiteClock "0:00:26"]
[BlackClock "0:00:05"]

1. e4 {[%clk 0:03:00]}  c5 {[%clk 0:02:59]} 2. Nf3 {[%clk 0:03:00]}  Nc6 {[%clk 0:02:58]} 3. d4 {[%clk 0:02:58]}  cxd4 {[%clk 0:02:58]} 4. Nxd4 {[%clk 0:02:59]}  Nf6 {[%clk 0:02:59]} 5. Nc3 {[%clk 0:02:59]}  e5 {[%clk 0:02:59]} 6. Ndb5 {[%clk 0:02:59]}  d6 {[%clk 0:02:59]} 7. Nd5 {[%clk 0:02:59]}  Nxd5 {[%clk 0:02:59]} 8. exd5 {[%clk 0:03:00]}  Nb8 {[%clk 0:03:00]} 9. a4 {[%clk 0:02:59]}  Be7 {[%clk 0:03:00]} 10. Be2 {[%clk 0:02:59]}  O-O {[%clk 0:02:59]} 11. Bd2 {[%clk 0:02:59]}  a6 {[%clk 0:02:59]} 12. Na3 {[%clk 0:02:59]}  Nd7 {[%clk 0:02:59]} 13. Nc4 {[%clk 0:02:51]}  b6 {[%clk 0:02:34]} 14. O-O {[%clk 0:02:47]}  f5 {[%clk 0:02:14]} 15. f4 {[%clk 0:02:19]}  exf4 {[%clk 0:01:59]} 16. Bxf4 {[%clk 0:02:20]}  Nc5 {[%clk 0:01:56]} 17. Bf3 {[%clk 0:01:40]}  g5 {[%clk 0:01:20]} 18. Be3 {[%clk 0:01:29]}  Bd7 {[%clk 0:01:17]} 19. a5 {[%clk 0:01:22]}  Bb5 {[%clk 0:01:00]} 20. Nxb6 {[%clk 0:01:15]}  Bxf1 {[%clk 0:00:58]} 21. Nxa8 {[%clk 0:01:11]}  Bxg2 {[%clk 0:00:51]} 22. Bxg2 {[%clk 0:01:12]}  Qxa8 {[%clk 0:00:31]} 23. Bxc5 {[%clk 0:01:13]}  dxc5 {[%clk 0:00:26]} 24. d6 {[%clk 0:01:14]}  Qa7 {[%clk 0:00:21]} 25. dxe7 {[%clk 0:00:48]}  Qxe7 {[%clk 0:00:22]} 26. Qd2 {[%clk 0:00:49]}  Rd8 {[%clk 0:00:19]} 27. Qc3 {[%clk 0:00:37]}  Qe2 {[%clk 0:00:15]} 28. Re1 {[%clk 0:00:23]}  Rd1 {[%clk 0:00:15]} 29. Bd5+ {[%clk 0:00:24]}  Kf8 {[%clk 0:00:12]} 30. Qf6+ {[%clk 0:00:24]}  Ke8 {[%clk 0:00:11]} 31. Bc6+ {[%clk 0:00:25]}  Rd7 {[%clk 0:00:05]} 32. Bxd7+ {[%clk 0:00:25]}  Kxd7 {[%clk 0:00:05]} 33. Rxe2 {[%clk 0:00:26]} 1-0


[Site "https://www.chess.com"]